bitfinex/quotes_BTCUSD_20250902
["timestamp","ask_amount","ask_price","bid_price","bid_amount"]
[1756813717029,1.97313159,110100.0,110090.0,0.02157069]
[1756813717348,1.97313159,110100.0,110090.0,0.01942069]
[1756813717787,1.97313159,110100.0,110090.0,0.02157069]
[1756813717993,1.97313159,110100.0,110090.0,0.01942069]
[1756813718355,1.97313159,110100.0,110090.0,0.02157069]
[1756813718599,1.97313159,110100.0,110090.0,0.01942069]
[1756813719979,0.90190368,110100.0,110090.0,0.02153069]
[1756813720332,1.61605562,110100.0,110090.0,0.02153069]
[1756813720966,1.46257562,110100.0,110090.0,0.02153069]
[1756813721177,1.61593562,110100.0,110090.0,0.02153069]
[1756813722334,1.61593562,110100.0,110090.0,0.01942069]
[1756813722754,1.61593562,110100.0,110090.0,0.01640069]
[1756813723271,1.61590213,110100.0,110090.0,0.01640069]
[1756813723907,1.59899695,110100.0,110090.0,0.01640069]
[1756813724113,1.61589919,110100.0,110090.0,0.01640069]
[1756813724517,0.95948221,110100.0,110090.0,0.01640069]
[1756813724777,0.98385653,110100.0,110090.0,0.01640069]
[1756813725004,2.03990025,110100.0,110090.0,0.01640069]
[1756813725213,1.99734948,110100.0,110090.0,0.01640069]
[1756813725454,1.99932948,110100.0,110090.0,0.01640069]
[1756813727008,1.99734948,110100.0,110090.0,0.01640069]
[1756813727426,2.00002948,110100.0,110090.0,0.01640069]
[1756813727641,1.64097351,110100.0,110090.0,0.02173069]
[1756813727873,2.05776444,110100.0,110090.0,0.01640069]
[1756813728109,2.10451662,110100.0,110090.0,0.01640069]
[1756813728328,2.12545544,110100.0,110090.0,0.01640069]
[1756813729163,1.9349049,110100.0,110090.0,0.01640069]
[1756813729368,2.0909049,110100.0,110090.0,0.01640069]
[1756813729602,2.12343544,110100.0,110090.0,0.01640069]
[1756813730034,2.12541544,110100.0,110090.0,0.01640069]
[1756813731569,1.76880999,110100.0,110090.0,0.01640069]
[1756813732018,1.53267591,110100.0,110090.0,0.01640069]
[1756813732238,1.68179841,110100.0,110090.0,0.01640069]
[1756813733331,1.67981841,110100.0,110090.0,0.01640069]
[1756813733930,1.66489877,110100.0,110090.0,0.01640069]
[1756813734136,1.67982986,110100.0,110090.0,0.01640069]
[1756813734578,1.67983092,110100.0,110090.0,0.01640069]
[1756813734783,2.17983092,110100.0,110090.0,0.01640069]
[1756813735033,2.1940525,110100.0,110090.0,0.01640069]
[1756813735218,2.1960325,110100.0,110090.0,0.01640069]
[1756813735919,1.30249122,110100.0,110090.0,0.01640069]
[1756813736147,1.30249122,110100.0,110090.0,0.02173069]
[1756813736148,2.05747792,110100.0,110090.0,0.02173069]
[1756813736364,1.34285546,110100.0,110090.0,0.02173069]
[1756813736577,2.0331036,110100.0,110090.0,0.02173069]
[1756813737665,2.05747792,110100.0,110090.0,0.02173069]
[1756813737879,2.12853624,110100.0,110090.0,0.02173069]
[1756813738090,2.10614192,110100.0,110090.0,0.02173069]
[1756813738307,2.15885764,110100.0,110090.0,0.01640069]
[1756813738531,2.1862832,110100.0,110090.0,0.01640069]
[1756813740115,2.1862832,110100.0,110090.0,0.01962069]
[1756813740321,2.1862832,110100.0,110090.0,0.02173069]
[1756813740522,2.15885764,110100.0,110090.0,0.02173069]
[1756813741082,2.05771792,110100.0,110090.0,0.02173069]
[1756813741311,2.05768063,110100.0,110090.0,0.02173069]
[1756813742005,2.09021117,110100.0,110090.0,0.02173069]
[1756813742246,0.34,110070.0,110060.0,0.25526522]
[1756813742478,0.69505201,110080.0,110070.0,0.03174]
[1756813742690,0.53863071,110080.0,110070.0,0.25571595]
[1756813742857,0.52170078,110080.0,110070.0,0.25344467]
[1756813743064,0.54901639,110080.0,110070.0,0.07174212]
[1756813743473,0.54901639,110080.0,110070.0,0.07074212]
[1756813743688,0.54948769,110080.0,110070.0,0.07074212]
[1756813744262,0.60674043,110070.0,110060.0,0.28272085]
[1756813744469,0.25344455,110070.0,110060.0,0.27421505]
[1756813745161,0.61075578,110070.0,110060.0,0.09249599]
[1756813745593,0.20901815,110070.0,110060.0,0.09249599]
[1756813745812,0.56632938,110070.0,110060.0,0.12781316]
[1756813746345,0.56632938,110070.0,110060.0,0.12817316]
[1756813746555,0.20901815,110070.0,110060.0,0.30953222]
[1756813746756,0.53901378,110070.0,110060.0,0.30989222]
[1756813746958,0.54001378,110070.0,110060.0,0.31089222]
[1756813747377,0.18270255,110070.0,110060.0,0.31089222]
[1756813747588,0.001,110070.0,110060.0,0.31089222]
[1756813747800,0.0100916,110070.0,110060.0,0.31089222]
[1756813748006,0.001,110070.0,110060.0,0.46681222]
[1756813748244,0.001,110070.0,110060.0,0.46881222]
[1756813748245,0.002,110070.0,110060.0,0.46881222]
[1756813748657,0.18370255,110070.0,110060.0,0.46881222]
[1756813749288,0.002,110070.0,110060.0,0.46881222]
[1756813749491,0.18370255,110070.0,110060.0,0.46881222]
[1756813750488,0.002,110070.0,110060.0,0.46881222]
[1756813751111,0.18370255,110070.0,110060.0,0.46881222]
[1756813751516,0.002,110070.0,110060.0,0.46881222]
[1756813751913,0.35931123,110070.0,110060.0,0.46881222]
[1756813752671,0.54101378,110070.0,110060.0,0.46881222]
[1756813753051,0.35931123,110070.0,110060.0,0.46881222]
[1756813753665,0.002,110070.0,110060.0,0.46881222]
[1756813755293,0.18370255,110070.0,110060.0,0.46845222]
[1756813755708,0.54101378,110070.0,110060.0,0.46845222]
[1756813756305,0.31197575,110070.0,110060.0,0.46845222]
[1756813756505,0.4936783,110070.0,110060.0,0.46845222]
[1756813757498,0.4936783,110070.0,110060.0,0.46805222]
[1756813757687,0.53901378,110070.0,110060.0,0.46805222]
[1756813758262,0.54204378,110070.0,110060.0,0.31253222]
[1756813758465,0.54403378,110070.0,110060.0,0.46805222]
[1756813759148,0.54403378,110070.0,110060.0,0.28629316]
[1756813759305,0.54403378,110070.0,110060.0,0.46801222]
[1756813759510,0.54403378,110070.0,110060.0,0.28629316]
[1756813759782,0.54403378,110070.0,110060.0,0.46801222]
[1756813760802,0.53901378,110070.0,110060.0,0.46801222]
[1756813760975,0.35731123,110070.0,110060.0,0.46801222]
[1756813761191,0.56154089,110080.0,110060.0,0.46801222]
[1756813761388,0.35731123,110070.0,110060.0,0.46801222]
[1756813762465,0.35731123,110070.0,110060.0,0.31153222]
[1756813762661,0.35731123,110070.0,110060.0,0.46685222]
[1756813762823,0.35731123,110070.0,110060.0,0.46885222]
[1756813763023,0.35731123,110070.0,110060.0,0.31353222]
[1756813763232,0.35731123,110070.0,110060.0,0.46885222]
[1756813763431,0.35731123,110070.0,110060.0,0.46681222]
[1756813763861,0.35831123,110070.0,110060.0,0.46881222]
[1756813764405,0.54001378,110070.0,110060.0,0.46881222]
[1756813764589,0.18270255,110070.0,110060.0,0.46881222]
[1756813764806,0.35831123,110070.0,110060.0,0.46881222]
[1756813765820,0.54001378,110070.0,110060.0,0.46881222]
[1756813766433,0.54304378,110070.0,110060.0,0.46881222]
[1756813766835,0.54001378,110070.0,110060.0,0.46881222]
[1756813767484,0.35831123,110070.0,110060.0,0.46881222]
[1756813767691,0.54001378,110070.0,110060.0,0.46881222]
[1756813768265,0.35831123,110070.0,110060.0,0.46881222]
[1756813768466,0.54001378,110070.0,110060.0,0.31353222]
[1756813768625,0.54304378,110070.0,110060.0,0.46865222]
[1756813768836,0.36134123,110070.0,110060.0,0.46865222]
[1756813771417,0.001,110070.0,110060.0,0.46865222]
[1756813777513,0.57883777,110080.0,110070.0,0.18170255]
[1756813777514,0.35731123,110080.0,110070.0,0.18170255]
[1756813777739,0.54098766,110080.0,110070.0,0.24673803]
[1756813778508,0.55019974,110080.0,110070.0,0.40145803]
[1756813778746,0.55019974,110080.0,110070.0,0.24673803]
[1756813778996,0.55019974,110080.0,110070.0,0.40145803]
[1756813779205,0.19388851,110080.0,110070.0,0.40245803]
[1756813779410,0.55219974,110080.0,110070.0,0.40445803]
[1756813779617,0.55521974,110080.0,110070.0,0.40445803]
[1756813784098,0.55521974,110080.0,110070.0,0.06803548]
[1756813784339,0.55521974,110080.0,110070.0,0.003]
[1756813784573,0.55521974,110080.0,110070.0,0.15756]
[1756813785418,0.55521974,110080.0,110070.0,0.003]
[1756813785619,0.55521974,110080.0,110070.0,0.15756]
[1756813787532,0.55521974,110080.0,110070.0,0.003]
[1756813787971,0.55521974,110080.0,110070.0,0.15752]
[1756813788168,0.55521974,110080.0,110070.0,0.20416722]
[1756813788581,0.55521974,110080.0,110070.0,0.04964722]
[1756813788784,0.55521974,110080.0,110070.0,0.20412722]
[1756813789017,0.55521974,110080.0,110070.0,0.04964722]
[1756813789227,0.55521974,110080.0,110070.0,0.20408722]
[1756813789433,0.55521974,110080.0,110070.0,0.04964722]
[1756813789639,0.55521974,110080.0,110070.0,0.20408722]
[1756813790650,0.55521974,110080.0,110070.0,0.04964722]
[1756813790834,0.55521974,110080.0,110070.0,0.20404722]
[1756813792655,0.55521974,110080.0,110070.0,0.38574977]
[1756813793588,0.91240871,110080.0,110070.0,0.20404722]
[1756813793904,0.91240871,110080.0,110070.0,0.003]
[1756813794131,0.91240871,110080.0,110070.0,0.15736]
[1756813794800,0.93972612,110080.0,110070.0,0.15736]
[1756813795928,0.95926511,110080.0,110070.0,0.15736]
[1756813796167,0.93972612,110080.0,110070.0,0.15736]
[1756813796357,0.93972612,110080.0,110070.0,0.19479947]
[1756813797323,0.22522592,110080.0,110070.0,0.19479947]
[1756813797548,0.93972612,110080.0,110070.0,0.19689947]
[1756813797774,0.93972612,110080.0,110070.0,0.19479947]
[1756813799831,0.93972612,110080.0,110070.0,0.04043947]
[1756813799977,0.93972612,110080.0,110070.0,0.19459947]
[1756813800189,1.27972612,110080.0,110070.0,0.003]
[1756813800408,1.27972612,110080.0,110070.0,0.15716]
[1756813800629,1.29926621,110080.0,110070.0,0.15716]
[1756813801596,1.29926621,110080.0,110070.0,0.15712]
[1756813802487,1.45338621,110080.0,110070.0,0.15712]
[1756813802687,1.45338621,110080.0,110070.0,0.19453552]
[1756813802863,1.45334621,110080.0,110070.0,0.19453552]
[1756813804800,1.29926621,110080.0,110070.0,0.19453552]
[1756813805568,1.29926621,110080.0,110070.0,0.19441552]
[1756813806185,1.29926621,110080.0,110070.0,0.04041552]
[1756813806393,1.29926621,110080.0,110070.0,0.19441552]
[1756813808050,0.58476601,110080.0,110070.0,0.37611807]
[1756813808263,1.27972612,110080.0,110070.0,0.19441552]
[1756813809078,1.27972612,110080.0,110070.0,0.003]
[1756813809284,1.29926227,110080.0,110070.0,0.15692]
[1756813809509,1.27972612,110080.0,110070.0,0.34077255]
[1756813809711,1.27670612,110080.0,110070.0,0.34077255]
[1756813809915,1.27969612,110080.0,110070.0,0.34077255]
[1756813810118,1.27969612,110080.0,110070.0,0.39687032]
[1756813810664,1.27670612,110080.0,110070.0,0.39687032]
[1756813811086,1.27969612,110080.0,110070.0,0.39687032]
[1756813811519,0.91746563,110080.0,110070.0,0.48878631]
[1756813811833,1.27471573,110080.0,110070.0,0.48878631]
[1756813812287,1.27968573,110080.0,110070.0,0.48878631]
[1756813815173,1.27471573,110080.0,110070.0,0.48878631]
[1756813817387,0.02931741,110080.0,110070.0,0.84920641]
[1756813817602,0.002,110080.0,110070.0,0.91908641]
[1756813817810,0.002,110080.0,110070.0,0.94639751]
[1756813818013,0.002,110080.0,110070.0,0.58914741]
[1756813820515,0.002,110080.0,110070.0,0.94639751]
[1756813820923,0.002,110080.0,110070.0,0.58914741]
[1756813822614,0.002,110080.0,110070.0,0.94639751]
[1756813824560,0.002,110080.0,110070.0,0.96733633]
[1756813826525,0.002,110080.0,110070.0,1.23063633]
[1756813827179,0.002,110080.0,110070.0,0.87338623]
[1756813827398,0.002,110080.0,110070.0,1.23063633]
[1756813827610,0.001,110080.0,110070.0,1.22963633]
[1756813827824,0.36935102,110100.0,110070.0,1.23672145]
[1756813828026,0.54894507,110110.0,110100.0,0.18165304]
[1756813828027,0.5489465,110110.0,110100.0,0.18165304]
[1756813828242,0.9111666,110110.0,110100.0,0.3713253]
[1756813829135,0.38952863,110110.0,110100.0,0.3713253]
[1756813829337,0.39853788,110110.0,110100.0,0.3713253]
[1756813829537,0.39853788,110110.0,110100.0,0.3703253]
[1756813829857,0.58017442,110110.0,110100.0,0.3703253]
[1756813831042,0.22292432,110110.0,110100.0,0.3703253]
[1756813831248,0.58017442,110110.0,110100.0,0.3703253]
[1756813831452,0.22392432,110110.0,110100.0,0.3703253]
[1756813831654,0.55386589,110110.0,110100.0,0.46224129]
[1756813836323,0.55386589,110110.0,110100.0,0.30880129]
[1756813836561,0.55386589,110110.0,110100.0,0.28138825]
[1756813837451,0.55386589,110110.0,110100.0,0.46304129]
[1756813839230,0.55386589,110110.0,110100.0,0.28138825]
[1756813840386,0.55386589,110110.0,110100.0,0.09191599]
[1756813840596,0.18165304,110100.0,110090.0,0.18050685]
[1756813840800,0.89615324,110100.0,110090.0,0.24511599]
[1756813841047,0.90135324,110100.0,110090.0,0.24511599]
[1756813841452,0.90135324,110100.0,110090.0,0.42678553]
[1756813842290,0.90235324,110100.0,110090.0,0.50416812]
[1756813842894,0.90335324,110100.0,110090.0,0.50716812]
[1756813843448,0.90335324,110100.0,110090.0,0.50615511]
[1756813845314,0.90335324,110100.0,110090.0,0.35295511]
[1756813845566,0.90335324,110100.0,110090.0,0.50611511]
[1756813845764,0.7217002,110100.0,110090.0,0.50611511]
[1756813845952,0.90335324,110100.0,110090.0,0.50611511]
[1756813846724,0.90335324,110100.0,110090.0,0.35295511]
[1756813846927,0.18885304,110100.0,110090.0,0.50611511]
[1756813847112,0.90335324,110100.0,110090.0,0.32440557]
[1756813847359,0.90335324,110100.0,110090.0,0.50607511]
[1756813847608,0.3644501,110100.0,110090.0,0.50805511]
[1756813847800,0.3592501,110100.0,110090.0,0.50805511]
[1756813848005,0.54090314,110100.0,110090.0,0.50805511]
[1756813848150,0.54610314,110100.0,110090.0,0.50805511]
[1756813849985,0.18885304,110100.0,110090.0,0.50805511]
[1756813850196,0.54610314,110100.0,110090.0,0.50805511]
[1756813852675,0.90335324,110100.0,110090.0,0.50805511]
[1756813852972,0.7217002,110100.0,110090.0,0.50805511]
[1756813853209,0.3644501,110100.0,110090.0,0.50805511]
[1756813853394,0.90335324,110100.0,110090.0,0.50805511]
[1756813854001,0.7186002,110100.0,110090.0,0.50805511]
[1756813854563,0.18575304,110100.0,110090.0,0.50805511]
[1756813854772,0.90335324,110100.0,110090.0,0.50805511]
[1756813855224,0.90335324,110100.0,110090.0,0.50607511]
[1756813855649,0.54595596,110100.0,110090.0,0.35295511]
[1756813855822,0.54595596,110100.0,110090.0,0.32440557]
[1756813856025,0.54595596,110100.0,110090.0,0.17128557]
[1756813856265,0.54595596,110100.0,110090.0,0.24902298]
[1756813856461,0.54595596,110100.0,110090.0,0.43069252]
[1756813858915,0.54595596,110100.0,110090.0,0.09590298]
[1756813859053,0.54595596,110100.0,110090.0,0.27757252]
[1756813859250,0.54595596,110100.0,110090.0,0.43069252]
[1756813859466,0.54595596,110100.0,110090.0,0.49466036]
[1756813859869,0.35910292,110100.0,110090.0,0.49664036]
[1756813860292,0.36430292,110100.0,110090.0,0.49664036]
[1756813862411,0.54595596,110100.0,110090.0,0.49664036]
[1756813862762,0.36430292,110100.0,110090.0,0.49664036]
[1756813863553,0.54595596,110100.0,110090.0,0.49664036]
[1756813865918,0.36430292,110100.0,110090.0,0.49664036]
[1756813866577,0.35910292,110100.0,110090.0,0.49664036]
[1756813867641,0.54075596,110100.0,110090.0,0.49664036]
[1756813867820,0.54595596,110100.0,110090.0,0.49664036]
[1756813868231,0.54595596,110100.0,110090.0,0.34352036]
[1756813868440,0.54595596,110100.0,110090.0,0.49664036]
[1756813869665,0.36430292,110100.0,110090.0,0.49664036]
[1756813873203,0.54595596,110100.0,110090.0,0.49664036]
[1756813873637,0.54595596,110100.0,110090.0,0.49466036]
[1756813874263,0.0072,110100.0,110090.0,0.51770918]
[1756813874496,0.35910292,110100.0,110090.0,0.51770918]
[1756813874709,0.54598596,110100.0,110090.0,0.33392964]
[1756813874889,0.90308888,110100.0,110090.0,0.15987082]
[1756813875123,0.90308888,110100.0,110090.0,0.24902298]
[1756813875345,0.54598596,110100.0,110090.0,0.09590298]
[1756813875759,0.54598596,110100.0,110090.0,0.24902298]
[1756813876187,0.54598596,110100.0,110090.0,0.09590298]
[1756813876629,0.54598596,110100.0,110090.0,0.24902298]
[1756813876830,0.54598596,110100.0,110090.0,0.29482387]
[1756813878691,0.18888304,110100.0,110090.0,0.29482387]
[1756813878945,0.54598596,110100.0,110090.0,0.29482387]
[1756813879601,0.90308888,110100.0,110090.0,0.29478387]
[1756813880415,1.05616888,110100.0,110090.0,0.005]
[1756813880621,1.08207435,110100.0,110090.0,0.005]
[1756813880845,1.48840748,110100.0,110090.0,0.005]
[1756813881056,1.50537114,110100.0,110090.0,0.005]
[1756813881518,1.50437114,110100.0,110090.0,0.002]
[1756813881726,1.50536749,110100.0,110090.0,0.004]
[1756813881937,1.52974323,110100.0,110090.0,0.004]
[1756813882150,1.52874323,110100.0,110090.0,0.002]
[1756813882357,1.71257521,110100.0,110090.0,0.002]
[1756813883002,1.71457521,110100.0,110090.0,0.003]
[1756813883238,1.68919947,110100.0,110090.0,0.001]
[1756813883455,0.18168604,110080.0,110070.0,0.22310108]
[1756813883664,0.54401896,110080.0,110070.0,0.15322108]
[1756813884910,0.58595965,110080.0,110070.0,0.15622108]
[1756813885418,0.61327582,110080.0,110070.0,0.15622108]
[1756813885745,0.61327582,110080.0,110070.0,0.19001505]
[1756813886378,0.61427582,110080.0,110070.0,0.19301505]
[1756813887745,0.57333513,110080.0,110070.0,0.19301505]
[1756813889574,0.21623221,110080.0,110070.0,0.19301505]
[1756813889775,0.57333513,110080.0,110070.0,0.19301505]
[1756813889981,0.61482399,110080.0,110070.0,0.19301505]
[1756813893791,0.25772107,110080.0,110070.0,0.3768276]
[1756813894006,0.61482399,110080.0,110070.0,0.3768276]
[1756813894208,0.61482399,110080.0,110070.0,0.19512505]
[1756813894833,0.57333513,110080.0,110070.0,0.19512505]
[1756813895388,0.56810513,110080.0,110070.0,0.19512505]
[1756813895591,0.56810513,110080.0,110070.0,0.3799476]
[1756813895799,0.56810513,110080.0,110070.0,0.19824505]
[1756813896004,0.56810513,110080.0,110070.0,0.3768276]
[1756813896205,0.56810513,110080.0,110070.0,0.19512505]
[1756813896406,0.56810513,110080.0,110070.0,0.3768276]
[1756813896632,0.56810513,110080.0,110070.0,0.19512505]
[1756813897397,0.57008513,110080.0,110070.0,0.19512505]
[1756813897590,0.57333513,110080.0,110070.0,0.19512505]
[1756813897822,0.57333513,110080.0,110070.0,0.03993505]
[1756813898073,0.57333513,110080.0,110070.0,0.19301505]
[1756813899015,0.21623221,110080.0,110070.0,0.19506505]
[1756813899229,0.57333513,110080.0,110070.0,0.19506505]
[1756813900356,0.21623221,110080.0,110070.0,0.19506505]
[1756813900588,0.54078896,110080.0,110070.0,0.46868359]
[1756813901928,0.54078896,110080.0,110070.0,0.46868359]
[1756813903251,0.54278896,110080.0,110070.0,0.13390104]
[1756813903473,0.54580896,110080.0,110070.0,0.46868359]
[1756813903741,0.54580896,110080.0,110070.0,0.13390104]
[1756813903964,0.54580896,110080.0,110070.0,0.46868359]
[1756813905524,0.54580896,110080.0,110070.0,0.28698104]
[1756813905749,0.54580896,110080.0,110070.0,0.46868359]
[1756813906178,0.54580896,110080.0,110070.0,0.28698104]
[1756813906397,0.54580896,110080.0,110070.0,0.28493104]
[1756813906616,0.54580896,110080.0,110070.0,0.46663359]
[1756813907066,0.54580896,110080.0,110070.0,0.13185104]
[1756813907290,0.54580896,110080.0,110070.0,0.28493104]
[1756813907524,0.54580896,110080.0,110070.0,0.19301505]
[1756813907773,0.57312412,110080.0,110070.0,0.19301505]
[1756813908185,0.57312412,110080.0,110070.0,0.03993505]
[1756813908851,0.57312412,110080.0,110070.0,0.00614108]
[1756813909278,0.59265442,110080.0,110070.0,0.00614108]
[1756813912154,0.18173557,110050.0,110040.0,0.02731617]
[1756813912364,0.53883849,110050.0,110040.0,0.0004713]
[1756813912716,0.54385849,110050.0,110040.0,0.0004713]
[1756813912928,0.57118217,110050.0,110040.0,0.0004713]
[1756813913280,0.61276166,110050.0,110040.0,0.0044713]
[1756813913677,0.62169664,110050.0,110040.0,0.0044713]
[1756813913893,0.62169664,110050.0,110040.0,0.1585513]
[1756813914138,0.62269664,110050.0,110040.0,0.1615513]
[1756813914675,0.26559372,110050.0,110040.0,0.19797329]
[1756813914880,0.62269664,110050.0,110040.0,0.19592329]
[1756813915093,0.62269664,110050.0,110040.0,0.1615513]
[1756813915512,0.62305975,110050.0,110040.0,0.1615513]
[1756813915949,0.21999423,110050.0,110040.0,0.43726938]
[1756813916155,0.03825866,110050.0,110040.0,0.43726938]
[1756813916368,0.39572469,110050.0,110040.0,0.50276617]
[1756813916784,0.36840101,110050.0,110040.0,0.50276617]
[1756813917038,0.82425218,110050.0,110040.0,0.0084713]
[1756813917248,1.56502604,110050.0,110040.0,0.0084713]
[1756813917464,1.57349734,110050.0,110040.0,0.0084713]
[1756813917679,1.66541333,110050.0,110040.0,0.0084713]
[1756813917887,1.66341333,110050.0,110040.0,0.0004713]
[1756813918131,1.66541333,110050.0,110040.0,0.0004713]
[1756813918356,2.06484936,110050.0,110040.0,0.0014713]
[1756813918583,1.70738333,110050.0,110040.0,0.0014713]
[1756813918822,2.06184936,110050.0,110040.0,0.0004713]
[1756813919029,1.72128583,110050.0,110040.0,0.0004713]
[1756813919588,1.71928583,110050.0,110040.0,0.0004713]
[1756813920040,1.72028583,110050.0,110040.0,0.0004713]
[1756813920840,2.07775186,110050.0,110040.0,0.0004713]
[1756813921054,1.72128583,110050.0,110040.0,0.0014713]
[1756813921454,2.06184936,110050.0,110040.0,0.0014713]
[1756813921664,2.07874101,110050.0,110040.0,0.0014713]
[1756813922545,2.13564627,110050.0,110040.0,0.0014713]
[1756813922761,2.15885167,110050.0,110040.0,0.0014713]
[1756813923150,2.15885167,110050.0,110040.0,0.0014313]
[1756813923388,2.15252293,110050.0,110040.0,0.0014313]
[1756813923575,2.15884892,110050.0,110040.0,0.0014313]
[1756813924001,2.19137946,110050.0,110040.0,0.0014313]
[1756813925660,2.19037946,110050.0,110040.0,0.0004313]
[1756813926083,2.19337946,110050.0,110040.0,0.0014313]
[1756813926298,2.19537946,110050.0,110040.0,0.0014313]
[1756813926715,2.19337946,110050.0,110040.0,0.0014313]
[1756813927192,2.19537946,110050.0,110040.0,0.0014313]
[1756813927405,2.19537946,110050.0,110040.0,1e-08]
[1756813928021,2.20012929,110050.0,110040.0,1e-08]
[1756813929725,2.2001188,110050.0,110040.0,1e-08]
[1756813930170,2.17574306,110050.0,110040.0,1e-08]
[1756813930390,1.99114272,110050.0,110040.0,1e-08]
[1756813930610,1.95217272,110050.0,110040.0,1e-08]
[1756813931046,2.10537272,110050.0,110040.0,1e-08]
[1756813931613,0.52175209,110040.0,110030.0,0.0004]
[1756813931792,0.87923463,110030.0,110020.0,0.00048]
[1756813932026,1.96407087,110030.0,110020.0,0.00048]
[1756813932225,1.96723087,110030.0,110020.0,0.00048]
[1756813932807,1.99456693,110030.0,110020.0,0.00048]
[1756813933231,1.97968773,110030.0,110020.0,1e-08]
[1756813933450,2.01355856,110030.0,110020.0,1e-08]
[1756813933736,2.03004642,110030.0,110020.0,1e-08]
[1756813933977,2.04687891,110030.0,110020.0,1e-08]
[1756813934407,2.04587891,110030.0,110020.0,1e-08]
[1756813934626,2.04787891,110030.0,110020.0,1e-08]
[1756813934848,2.03786802,110030.0,110020.0,1e-08]
[1756813935060,0.18178512,110020.0,110010.0,0.0004]
[1756813935284,2.06800942,110020.0,110010.0,0.0004]
[1756813935533,2.07321942,110020.0,110010.0,0.0004]
[1756813935752,2.10156082,110020.0,110010.0,0.0004]
[1756813936185,2.13388506,110020.0,110010.0,0.0004]
[1756813936360,2.16131062,110020.0,110010.0,0.0004]
[1756813936588,2.52077665,110020.0,110010.0,0.0014]
[1756813936797,2.52177665,110020.0,110010.0,0.0014]
[1756813937006,2.16427062,110020.0,110010.0,0.0014]
[1756813937449,2.20476294,110020.0,110010.0,0.0014]
[1756813938120,2.1724387,110020.0,110010.0,0.0014]
[1756813938327,2.1724387,110020.0,110010.0,0.00136]
[1756813938530,2.52990473,110020.0,110010.0,0.00136]
[1756813938740,2.55724311,110020.0,110010.0,0.00136]
[1756813940177,2.40408311,110020.0,110010.0,0.00136]
[1756813940384,2.55724311,110020.0,110010.0,0.00136]
[1756813941198,2.58956735,110020.0,110010.0,0.00136]
[1756813941402,2.56533458,110020.0,110010.0,0.00136]
[1756813941604,3.06533458,110020.0,110010.0,0.00136]
[1756813942796,3.06007134,110020.0,110010.0,0.00136]
[1756813942996,3.07949042,110020.0,110010.0,0.00136]
[1756813943404,3.08424025,110020.0,110010.0,0.00136]
[1756813944144,3.08427683,110020.0,110010.0,0.00136]
[1756813944565,2.93111683,110020.0,110010.0,0.00136]
[1756813944784,1.59864575,110020.0,110010.0,0.0035]
[1756813945002,2.51788384,110020.0,110010.0,0.0035]
[1756813945208,2.67104384,110020.0,110010.0,0.0035]
[1756813945473,2.67104384,110020.0,110010.0,0.00136]
[1756813946368,2.56667965,110020.0,110010.0,0.00136]
[1756813946577,2.71983965,110020.0,110010.0,0.00136]
[1756813947201,2.68751541,110020.0,110010.0,0.00136]
[1756813948174,2.70383242,110020.0,110010.0,0.00136]
[1756813948391,0.89673371,110010.0,110000.0,0.04305696]
[1756813948596,1.23303993,110010.0,110000.0,0.04602696]
[1756813948853,1.26545934,110010.0,110000.0,0.04816696]
[1756813949064,1.29279769,110010.0,110000.0,0.04816696]
[1756813949269,1.26037828,110010.0,110000.0,0.04519696]
[1756813949695,1.26084909,110010.0,110000.0,0.04519696]
[1756813949900,1.26184909,110010.0,110000.0,0.04519696]
[1756813950124,1.26284909,110010.0,110000.0,0.04619696]
[1756813950339,1.71747781,110010.0,110000.0,0.04405696]
[1756813950603,1.71747781,110010.0,110000.0,0.04619696]
[1756813950818,0.64507972,110010.0,110000.0,0.04619696]
[1756813951035,1.71747781,110010.0,110000.0,0.04619696]
[1756813951696,1.36001178,110010.0,110000.0,0.04619696]
[1756813952138,1.71747781,110010.0,110000.0,0.04405696]
[1756813953489,1.72461565,110010.0,110000.0,0.04405696]
[1756813953711,2.27329067,110010.0,110000.0,0.04405696]
[1756813954146,2.56461565,110010.0,110000.0,0.04405696]
[1756813954356,2.62972847,110010.0,110000.0,0.04405696]
[1756813954583,2.50884869,110010.0,110000.0,0.04405696]
[1756813954796,2.50890718,110010.0,110000.0,0.04405696]
[1756813955678,2.50891009,110010.0,110000.0,0.04405696]
[1756813956534,2.60223514,110010.0,110000.0,0.04405696]
[1756813956740,1.52983705,110010.0,110000.0,0.04405696]
[1756813956948,2.60223514,110010.0,110000.0,0.04405696]
[1756813957787,2.53712232,110010.0,110000.0,0.04405696]
[1756813958428,2.60223514,110010.0,110000.0,0.04405696]
[1756813959529,1.52983705,110010.0,110000.0,0.04405696]
[1756813959773,2.57402291,110010.0,110000.0,0.04405696]
[1756813960445,2.05818688,110010.0,110000.0,0.04609696]
[1756813960661,2.14831406,110010.0,110000.0,0.04609696]
[1756813960873,1.433382,110010.0,110000.0,0.04609696]
[1756813961108,1.60991088,110010.0,110000.0,0.04913696]
[1756813961314,1.76511088,110010.0,110000.0,0.04913696]
[1756813961767,1.60991088,110010.0,110000.0,0.04913696]
[1756813961981,2.10511088,110010.0,110000.0,0.04913696]
[1756813962184,2.13763534,110010.0,110000.0,0.04913696]
[1756813962408,2.10511088,110010.0,110000.0,0.04913696]
[1756813962619,2.13759538,110010.0,110000.0,0.04913696]
[1756813964375,2.13759538,110010.0,110000.0,0.04609696]
[1756813964817,2.23457137,110010.0,110000.0,0.04609696]
[1756813965040,2.20204687,110010.0,110000.0,0.04609696]
[1756813965263,2.2345754,110010.0,110000.0,0.04609696]
[1756813965477,2.58790674,110010.0,110000.0,0.04405696]
[1756813965910,2.62043442,110010.0,110000.0,0.04405696]
[1756813966121,2.6161189,110010.0,110000.0,0.04405696]
[1756813966761,1.73044064,110010.0,110000.0,0.04405696]
[1756813967011,1.70209924,110010.0,110000.0,0.04405696]
[1756813967227,2.05956527,110010.0,110000.0,0.04405696]
[1756813969358,1.9516823,110000.0,109990.0,0.0004]
[1756813969604,2.12710668,110000.0,109990.0,0.0004]
[1756813969815,2.15544808,110000.0,109990.0,0.0004]
[1756813970021,2.16050808,110000.0,109990.0,0.0004]
[1756813970882,2.16350808,110000.0,109990.0,0.0014]
[1756813971006,2.16050808,110000.0,109990.0,0.0004]
[1756813971229,2.16150808,110000.0,109990.0,0.0004]
[1756813971439,2.16650808,110000.0,109990.0,0.0014]
[1756813971647,2.17015391,110000.0,109990.0,0.0014]
[1756813971894,2.16515391,110000.0,109990.0,0.0004]
[1756813972100,2.66515391,110000.0,109990.0,0.0004]
[1756813972311,2.6213698,110000.0,109990.0,0.0014]
[1756813972507,2.5930284,110000.0,109990.0,0.00344]
[1756813972686,2.60418329,110000.0,109990.0,0.00344]
[1756813972889,2.60726329,110000.0,109990.0,0.0014]
[1756813973546,2.60626329,110000.0,109990.0,0.0014]
[1756813973915,2.60826329,110000.0,109990.0,0.0014]
[1756813975326,2.10812329,110000.0,109990.0,0.00344]
[1756813975686,1.51597162,110000.0,109990.0,0.00344]
[1756813975902,1.85597162,110000.0,109990.0,0.00344]